[Event "16th Deltalift Open 2019"]
[Site "Halmstad"]
[Date "2019.05.31"]
[Round "6.8"]
[White "Lindberg, Bengt"]
[Black "Ask, Josef"]
[Result "1-0"]
[ECO "C60"]
[WhiteElo "2382"]
[BlackElo "2149"]
[Annotator "ChessBase"]
[PlyCount "111"]
[EventDate "2019.05.30"]
[EventType "swiss"]
[EventCountry "SWE"]
[SourceTitle "playchess.com"]
[Source "ChessBase"]
[SourceQuality "1"]
[TimeControl "40/5400+30:1800+30"]

1. e4 {[%emt 0:00:00]} e5 {[%emt 0:00:00]} 2. Nf3 {[%emt 0:00:00]} Nc6 {[%emt 0:00:08]} 3. Bb5 {[%emt 0:00:00]} g6 {[%emt 0:00:39]} 4. O-O {[%emt 0:00:14]} Bg7 {[%emt 0:00:20]} 5. c3 {[%emt 0:00:12]} d6 {[%emt 0:01:13]} 6. d4 {[%emt 0:00:44]} Bd7 {[%emt 0:00:23]} 7. Re1 {[%emt 0:01:11]} Nge7 {[%emt 0:01:53]} 8. Na3 {[%emt 0:07:49]} O-O {[%emt 0:02:37]} 9. h3 {[%emt 0:04:37]} exd4 {[%emt 0:02:22]} 10. cxd4 {[%emt 0:01:09]} d5 {[%emt 0:00:35]} 11. e5 {[%emt 0:00:18]} Nf5 {[%emt 0:04:45]} 12. Bf1 {[%emt 0:09:42]} Nh4 {[%emt 0:03:29]} 13. Nh2 {[%emt 0:00:23]} f6 {[%emt 0:02:12]} 14. f4 {[%emt 0:07:19]} Be6 {[%emt 0:02:04]} 15. Nc2 {[%emt 0:11:14]} Qd7 {[%emt 0:02:33]} 16. Be3 {[%emt 0:01:21]} fxe5 {[%emt 0:08:29]} 17. fxe5 {[%emt 0:06:26]} h6 {[%emt 0:04:06]} 18. Ng4 {[%emt 0:04:52]} g5 {[%emt 0:01:22]} 19. Bd3 {[%emt 0:04:19]} Rf7 {[%emt 0:02:13]} 20. Bf2 {[%emt 0:09:51]} Nf5 {[%emt 0:00:53]} 21. Qe2 {[%emt 0:03:52]} Raf8 {[%emt 0:01:56]} 22. Rf1 {[%emt 0:04:03]} Nce7 {[%emt 0:01:51]} 23. Rae1 {[%emt 0:01:29]} Ng6 {[%emt 0:01:42]} 24. g3 {[%emt 0:00:47]} Kh8 {[%emt 0:05:55]} 25. Kh2 {[%emt 0:08:24]} Kg8 {[%emt 0:01:09]} 26. Bg1 {[%emt 0:05:02]} Nge7 {[%emt 0:14:13]} 27. Rf3 {[%emt 0:04:31]} h5 {[%emt 0:07:20]} 28. Nge3 {[%emt 0:00:20]} h4 {[%emt 0:06:51]} 29. Nxf5 {[%emt 0:01:00]} Nxf5 {[%emt 0:00:16]} 30. Bxf5 {[%emt 0:00:59]} Rxf5 {[%emt 0:00:23]} 31. Rc3 {[%emt 0:02:29]} hxg3+ {[%emt 0:00:37]} 32. Rxg3 {[%emt 0:00:02]} Rf4 {[%emt 0:02:32]} 33. Qh5 {[%emt 0:00:55]} Rh4 {[%emt 0:00:40]} 34. Qxg5 {[%emt 0:00:06]} Rxh3+ {[%emt 0:00:20]} 35. Rxh3 {[%emt 0:00:05]} Bxh3 {[%emt 0:00:11]} 36. Ne3 {[%emt 0:01:06]} Be6 {[%emt 0:01:44]} 37. Re2 {[%emt 0:00:52]} Rf3 {[%emt 0:01:03]} 38. Rf2 {[%emt 0:00:33]} Qf7 {[%emt 0:02:55]} 39. Qd8+ {[%emt 0:00:17]} Kh7 {[%emt 0:00:22]} 40. Qh4+ {[%emt 0:00:09]} Kg8 {[%emt 0:01:00]} 41. Ng2 {[%emt 0:06:51]} c5 {[%emt 0:07:04]} 42. Rxf3 {[%emt 0:06:24]} Qxf3 {[%emt 0:00:06]} 43. Nf4 {[%emt 0:01:26]} cxd4 {[%emt 0:02:07]} 44. Bxd4 {[%emt 0:00:15]} Bg4 {[%emt 0:01:36]} 45. Qg5 {[%emt 0:00:39]} Kh7 {[%emt 0:04:04]} 46. Bxa7 {[%emt 0:06:39]} Qd1 {[%emt 0:05:20]} 47. Kg3 {[%emt 0:03:11]} Qf3+ {[%emt 0:01:09]} 48. Kh4 {[%emt 0:00:23]} Bd7 {[%emt 0:00:39]} 49. e6 {[%emt 0:05:08]} Bxe6 {[%emt 0:04:37]} 50. Qg6+ {[%emt 0:01:00]} Kh8 {[%emt 0:00:07]} 51. Nxe6 {[%emt 0:03:52]} Qh1+ {[%emt 0:03:53]} 52. Kg3 {[%emt 0:00:08]} Be5+ {[%emt 0:00:26]} 53. Kf2 {[%emt 0:00:26]} Qh4+ {[%emt 0:00:15]} 54. Ke2 {[%emt 0:01:02]} Qh2+ {[%emt 0:00:11]} 55. Bf2 {[%emt 0:00:42]} d4 {[%emt 0:02:21]} 56. Ng5 {[%emt 0:00:15]} 1-0

[Event "16th Deltalift Open 2019"]
[Site "Halmstad"]
[Date "2019.05.31"]
[Round "6.9"]
[White "Rydstrom, Tom"]
[Black "Goransson, Martin"]
[Result "1-0"]
[ECO "B23"]
[WhiteElo "2365"]
[BlackElo "2112"]
[Annotator "ChessBase"]
[PlyCount "81"]
[EventDate "2019.05.30"]
[EventType "swiss"]
[EventCountry "SWE"]
[SourceTitle "playchess.com"]
[Source "ChessBase"]
[SourceQuality "1"]
[TimeControl "40/5400+30:1800+30"]

1. e4 {[%emt 0:05:03]} c5 {[%emt 0:00:00]} 2. Nc3 {[%emt 0:00:06]} Nc6 {[%emt 0:00:04]} 3. Nge2 {[%emt 0:00:29]} d6 {[%emt 0:00:53]} 4. d4 {[%emt 0:01:11]} cxd4 {[%emt 0:00:13]} 5. Nxd4 {[%emt 0:00:03]} e5 {[%emt 0:00:26]} 6. Nf5 {[%emt 0:01:46]} g6 {[%emt 0:03:22]} 7. Ne3 {[%emt 0:00:17]} Be6 {[%emt 0:05:06]} 8. Ned5 {[%emt 0:05:58]} a6 {[%emt 0:03:41]} 9. a4 {[%emt 0:11:26]} Rc8 {[%emt 0:02:05]} 10. Bd3 {[%emt 0:00:36]} Bg7 {[%emt 0:00:31]} 11. O-O {[%emt 0:00:19]} h6 {[%emt 0:05:21]} 12. Be3 {[%emt 0:05:22]} Nf6 {[%emt 0:04:51]} 13. Qd2 {[%emt 0:04:51]} Nd4 {[%emt 0:02:29]} 14. a5 {[%emt 0:09:44]} Ng4 {[%emt 0:04:05]} 15. h3 {[%emt 0:11:49]} Nxe3 {[%emt 0:00:59]} 16. fxe3 {[%emt 0:00:02]} Nc6 {[%emt 0:01:07]} 17. Nb6 {[%emt 0:00:07]} Rb8 {[%emt 0:01:13]} 18. Ncd5 {[%emt 0:02:01]} O-O {[%emt 0:00:59]} 19. b4 {[%emt 0:00:45]} Qg5 {[%emt 0:00:37]} 20. Kh1 {[%emt 0:00:53]} f5 {[%emt 0:03:03]} 21. c4 {[%emt 0:10:20]} f4 {[%emt 0:32:46]} 22. b5 {[%emt 0:00:22]} fxe3 {[%emt 0:03:48]} 23. Qxe3 {[%emt 0:00:21]} Qxe3 {[%emt 0:00:29]} 24. Nxe3 {[%emt 0:00:02]} Nd4 {[%emt 0:01:17]} 25. Ra3 {[%emt 0:03:53]} h5 {[%emt 0:01:56]} 26. Ned5 {[%emt 0:00:34]} Bxd5 {[%emt 0:00:24]} 27. Nxd5 {[%emt 0:02:27]} Rxf1+ {[%emt 0:03:31]} 28. Bxf1 {[%emt 0:00:02]} Rf8 {[%emt 0:00:13]} 29. Kg1 {[%emt 0:00:35]} Ne6 {[%emt 0:00:10]} 30. bxa6 {[%emt 0:12:05]} bxa6 {[%emt 0:00:01]} 31. Rb3 {[%emt 0:00:13]} Nc5 {[%emt 0:01:15]} 32. Rb6 {[%emt 0:00:02]} Nxe4 {[%emt 0:00:34]} 33. Bd3 {[%emt 0:01:11]} Ng3 {[%emt 0:01:40]} 34. Ne7+ {[%emt 0:08:03]} Kh7 {[%emt 0:00:18]} 35. Nxg6 {[%emt 0:01:11]} Re8 {[%emt 0:07:00]} 36. Nxe5+ {[%emt 0:01:31]} Kg8 {[%emt 0:00:07]} 37. Nf3 {[%emt 0:00:28]} h4 {[%emt 0:00:32]} 38. Rxd6 {[%emt 0:00:47]} Be5 {[%emt 0:01:50]} 39. Rg6+ {[%emt 0:00:31]} Kf8 {[%emt 0:00:33]} 40. Rh6 {[%emt 0:01:01]} Bd4+ {[%emt 0:01:44]} 41. Nxd4 {[%emt 0:30:28]} 1-0

[Event "16th Deltalift Open 2019"]
[Site "Halmstad"]
[Date "2019.05.31"]
[Round "6.10"]
[White "Kucuksari, Kaan"]
[Black "Harren, Mats"]
[Result "1-0"]
[ECO "A61"]
[WhiteElo "2320"]
[BlackElo "2139"]
[Annotator "ChessBase"]
[PlyCount "96"]
[EventDate "2019.05.30"]
[EventType "swiss"]
[EventCountry "SWE"]
[SourceTitle "playchess.com"]
[Source "ChessBase"]
[SourceQuality "1"]
[TimeControl "40/5400+30:1800+30"]

1. d4 {[%emt 0:00:00]} Nf6 {[%emt 0:00:00]} 2. c4 {[%emt 0:00:00]} c5 {[%emt 0:00:00]} 3. d5 {[%emt 0:00:00]} e6 {[%emt 0:00:00]} 4. Nc3 {[%emt 0:00:00]} exd5 {[%emt 0:00:03]} 5. cxd5 {[%emt 0:00:04]} d6 {[%emt 0:00:08]} 6. Nf3 {[%emt 0:00:14]} g6 {[%emt 0:00:06]} 7. Bf4 {[%emt 0:00:08]} a6 {[%emt 0:00:13]} 8. a4 {[%emt 0:00:03]} Bg7 {[%emt 0:00:39]} 9. h3 {[%emt 0:00:11]} O-O {[%emt 0:00:22]} 10. e3 {[%emt 0:00:06]} Ne8 {[%emt 0:00:26]} 11. Be2 {[%emt 0:00:18]} b6 {[%emt 0:00:15]} 12. O-O {[%emt 0:00:30]} Nd7 {[%emt 0:00:17]} 13. Nd2 {[%emt 0:01:58]} Ne5 {[%emt 0:04:09]} 14. Bg3 {[%emt 0:00:39]} f5 {[%emt 0:00:40]} 15. Qb3 {[%emt 0:00:17]} Rb8 {[%emt 0:12:55]} 16. f4 {[%emt 0:00:34]} Nf7 {[%emt 0:09:14]} 17. Rae1 {[%emt 0:03:05]} Bb7 {[%emt 0:15:48]} 18. e4 {[%emt 0:03:29]} Nc7 {[%emt 0:08:28]} 19. Bf3 {[%emt 0:10:37]} fxe4 {[%emt 0:05:25]} 20. Ndxe4 {[%emt 0:00:41]} b5 {[%emt 0:00:50]} 21. Rd1 {[%emt 0:11:34]} bxa4 {[%emt 0:06:21]} 22. Qxa4 {[%emt 0:01:23]} Bc8 {[%emt 0:01:50]} 23. Rd2 {[%emt 0:04:16]} Nb5 {[%emt 0:01:24]} 24. Ne2 {[%emt 0:09:08]} Bd7 {[%emt 0:07:14]} 25. Qd1 {[%emt 0:00:38]} Bf5 {[%emt 0:01:47]} 26. Qe1 {[%emt 0:05:01]} Bxe4 {[%emt 0:01:24]} 27. Bxe4 {[%emt 0:00:08]} Re8 {[%emt 0:01:57]} 28. Qb1 {[%emt 0:01:46]} Qf6 {[%emt 0:01:33]} 29. f5 {[%emt 0:06:01]} g5 {[%emt 0:00:36]} 30. Bf2 {[%emt 0:00:40]} Na3 {[%emt 0:03:33]} 31. Qd3 {[%emt 0:01:35]} Rxb2 {[%emt 0:01:10]} 32. Rxb2 {[%emt 0:02:39]} Qxb2 {[%emt 0:00:01]} 33. f6 {[%emt 0:00:11]} Bxf6 {[%emt 0:03:33]} 34. Bxh7+ {[%emt 0:00:01]} Kf8 {[%emt 0:00:50]} 35. Ng3 {[%emt 0:01:37]} Bd4 {[%emt 0:01:04]} 36. Qg6 {[%emt 0:13:26]} Bxf2+ {[%emt 0:06:08]} 37. Rxf2 {[%emt 0:00:02]} Qb1+ {[%emt 0:02:45]} 38. Qxb1 {[%emt 0:00:33]} Nxb1 {[%emt 0:00:10]} 39. Bxb1 {[%emt 0:01:01]} Kg7 {[%emt 0:00:36]} 40. Nh5+ {[%emt 0:01:22]} Kf8 {[%emt 0:00:55]} 41. Bg6 {[%emt 0:30:56]} Re7 {[%emt 0:30:08]} 42. Ng3 {[%emt 0:03:45]} Re1+ {[%emt 0:01:22]} 43. Kh2 {[%emt 0:00:12]} Re7 {[%emt 0:00:25]} 44. Ne4 {[%emt 0:01:45]} Kg7 {[%emt 0:00:49]} 45. Rxf7+ {[%emt 0:00:06]} Rxf7 {[%emt 0:00:07]} 46. Bxf7 {[%emt 0:00:04]} Kxf7 {[%emt 0:00:10]} 47. Nxd6+ {[%emt 0:00:04]} Ke7 {[%emt 0:00:11]} 48. Nc4 {[%emt 0:00:04]} a5 {[%emt 0:00:11]} 1-0

[Event "16th Deltalift Open 2019"]
[Site "Halmstad"]
[Date "2019.05.31"]
[Round "6.11"]
[White "Troberg Eskola, Love"]
[Black "Ziegler, Ari"]
[Result "0-1"]
[ECO "B51"]
[WhiteElo "2134"]
[BlackElo "2300"]
[Annotator "ChessBase"]
[PlyCount "106"]
[EventDate "2019.05.30"]
[EventType "swiss"]
[EventCountry "SWE"]
[SourceTitle "playchess.com"]
[Source "ChessBase"]
[SourceQuality "1"]
[TimeControl "40/5400+30:1800+30"]

1. e4 {[%emt 0:00:00]} c5 {[%emt 0:00:00]} 2. Nf3 {[%emt 0:00:00]} d6 {[%emt 0:00:00]} 3. Bb5+ {[%emt 0:00:12]} Nc6 {[%emt 0:00:02]} 4. Bxc6+ {[%emt 0:00:13]} bxc6 {[%emt 0:00:05]} 5. d3 {[%emt 0:00:25]} e5 {[%emt 0:02:44]} 6. O-O {[%emt 0:02:11]} Nf6 {[%emt 0:02:23]} 7. h3 {[%emt 0:00:54]} Be7 {[%emt 0:01:59]} 8. Nbd2 {[%emt 0:03:30]} g5 {[%emt 0:03:06]} 9. Nxg5 {[%emt 0:05:36]} Rg8 {[%emt 0:00:21]} 10. h4 {[%emt 0:00:28]} h6 {[%emt 0:04:10]} 11. Ngf3 {[%emt 0:01:58]} Bg4 {[%emt 0:00:36]} 12. g3 {[%emt 0:03:24]} Bh3 {[%emt 0:05:55]} 13. Re1 {[%emt 0:00:29]} Ng4 {[%emt 0:01:45]} 14. Nf1 {[%emt 0:02:41]} Qd7 {[%emt 0:04:06]} 15. Rb1 {[%emt 0:06:56]} O-O-O {[%emt 0:10:58]} 16. c4 {[%emt 0:10:40]} f5 {[%emt 0:23:59]} 17. Qa4 {[%emt 0:00:25]} Bxf1 {[%emt 0:05:17]} 18. Rxf1 {[%emt 0:03:02]} Kb8 {[%emt 0:12:41]} 19. b4 {[%emt 0:01:36]} cxb4 {[%emt 0:00:08]} 20. Rxb4+ {[%emt 0:13:58]} Ka8 {[%emt 0:00:07]} 21. exf5 {[%emt 0:03:08]} Rc8 {[%emt 0:04:20]} 22. Qa6 {[%emt 0:07:13]} Rc7 {[%emt 0:03:34]} 23. Nh2 {[%emt 0:18:45]} Nxh2 {[%emt 0:02:36]} 24. Kxh2 {[%emt 0:00:02]} Qxf5 {[%emt 0:00:27]} 25. Be3 {[%emt 0:04:42]} c5 {[%emt 0:01:25]} 26. Rb3 {[%emt 0:00:59]} Qf3 {[%emt 0:00:47]} 27. Rg1 {[%emt 0:03:00]} h5 {[%emt 0:04:33]} 28. Qa5 {[%emt 0:02:06]} Qc6 {[%emt 0:00:36]} 29. Rgb1 {[%emt 0:00:42]} Bxh4 {[%emt 0:01:17]} 30. Qb5 {[%emt 0:02:13]} Qxb5 {[%emt 0:00:11]} 31. Rxb5 {[%emt 0:00:46]} Bf6 {[%emt 0:00:24]} 32. f3 {[%emt 0:01:58]} Rcg7 {[%emt 0:00:32]} 33. Bf2 {[%emt 0:00:27]} Bg5 {[%emt 0:00:29]} 34. Kh3 {[%emt 0:00:26]} Rf7 {[%emt 0:01:17]} 35. Kg2 {[%emt 0:00:09]} Rgf8 {[%emt 0:00:13]} 36. Be1 {[%emt 0:00:31]} Rxf3 {[%emt 0:00:56]} 37. Rb8+ {[%emt 0:00:42]} Rxb8 {[%emt 0:00:06]} 38. Rxb8+ {[%emt 0:00:04]} Kxb8 {[%emt 0:00:06]} 39. Kxf3 {[%emt 0:00:05]} Kc7 {[%emt 0:02:05]} 40. Ke4 {[%emt 0:00:07]} Kc6 {[%emt 0:00:24]} 41. Kf5 {[%emt 0:31:22]} Bc1 {[%emt 0:31:36]} 42. Kg6 {[%emt 0:00:00]} d5 {[%emt 0:00:00]} 43. cxd5+ {[%emt 0:00:00]} Kxd5 {[%emt 0:00:00]} 44. Bf2 {[%emt 0:00:00]} Ba3 {[%emt 0:00:00]} 45. Kxh5 {[%emt 0:00:00]} e4 {[%emt 0:00:00]} 46. dxe4+ {[%emt 0:00:00]} Kxe4 {[%emt 0:00:00]} 47. Be1 {[%emt 0:00:00]} Kd3 {[%emt 0:00:00]} 48. g4 {[%emt 0:00:00]} c4 {[%emt 0:00:00]} 49. g5 {[%emt 0:00:00]} c3 {[%emt 0:00:00]} 50. Bxc3 {[%emt 0:00:00]} Kxc3 {[%emt 0:00:00]} 51. Kg6 {[%emt 0:00:00]} Kb2 {[%emt 0:00:00]} 52. Kf7 {[%emt 0:00:00]} Kxa2 {[%emt 0:00:00]} 53. g6 {[%emt 0:00:00]} Bb2 {[%emt 0:00:00]} 0-1

[Event "16th Deltalift Open 2019"]
[Site "Halmstad"]
[Date "2019.05.31"]
[Round "6.12"]
[White "Lindgren, Fredrik"]
[Black "Holm, Ragnar"]
[Result "1/2-1/2"]
[ECO "D02"]
[WhiteElo "2278"]
[BlackElo "2124"]
[Annotator "ChessBase"]
[PlyCount "82"]
[EventDate "2019.05.30"]
[EventType "swiss"]
[EventCountry "SWE"]
[SourceTitle "playchess.com"]
[Source "ChessBase"]
[SourceQuality "1"]
[TimeControl "40/5400+30:1800+30"]

1. d4 {[%emt 0:00:00]} d5 {[%emt 0:00:29]} 2. Nf3 {[%emt 0:00:00]} Nf6 {[%emt 0:00:39]} 3. c4 {[%emt 0:00:46]} e6 {[%emt 0:00:33]} 4. g3 {[%emt 0:00:07]} c5 {[%emt 0:03:22]} 5. Bg2 {[%emt 0:00:24]} Nc6 {[%emt 0:00:20]} 6. O-O {[%emt 0:00:31]} cxd4 {[%emt 0:03:03]} 7. Nxd4 {[%emt 0:00:32]} Be7 {[%emt 0:00:37]} 8. cxd5 {[%emt 0:02:23]} exd5 {[%emt 0:00:20]} 9. Nc3 {[%emt 0:00:45]} O-O {[%emt 0:00:30]} 10. b3 {[%emt 0:03:09]} Re8 {[%emt 0:04:10]} 11. Bb2 {[%emt 0:00:15]} Bg4 {[%emt 0:01:54]} 12. h3 {[%emt 0:01:30]} Be6 {[%emt 0:05:35]} 13. Rc1 {[%emt 0:02:13]} Qd7 {[%emt 0:05:58]} 14. Kh2 {[%emt 0:08:47]} Rac8 {[%emt 0:06:34]} 15. Na4 {[%emt 0:02:15]} b6 {[%emt 0:08:29]} 16. e3 {[%emt 0:03:27]} Ne4 {[%emt 0:10:55]} 17. Nxc6 {[%emt 0:29:12]} Rxc6 {[%emt 0:00:20]} 18. Rxc6 {[%emt 0:00:11]} Qxc6 {[%emt 0:00:16]} 19. Qa1 {[%emt 0:00:33]} f6 {[%emt 0:04:40]} 20. Rc1 {[%emt 0:18:48]} Qd7 {[%emt 0:07:04]} 21. Rc2 {[%emt 0:04:29]} h5 {[%emt 0:07:13]} 22. h4 {[%emt 0:07:54]} Rc8 {[%emt 0:06:32]} 23. Qd1 {[%emt 0:04:29]} Rxc2 {[%emt 0:03:10]} 24. Qxc2 {[%emt 0:00:03]} Bf5 {[%emt 0:00:35]} 25. Qe2 {[%emt 0:01:55]} g6 {[%emt 0:06:24]} 26. Nc3 {[%emt 0:01:24]} Nxc3 {[%emt 0:05:11]} 27. Bxc3 {[%emt 0:00:03]} Qc6 {[%emt 0:00:40]} 28. Qd2 {[%emt 0:02:15]} Be4 {[%emt 0:01:01]} 29. Bxe4 {[%emt 0:05:14]} dxe4 {[%emt 0:00:06]} 30. Qd4 {[%emt 0:00:13]} Kf7 {[%emt 0:01:55]} 31. b4 {[%emt 0:00:20]} a6 {[%emt 0:00:34]} 32. a3 {[%emt 0:00:33]} b5 {[%emt 0:00:54]} 33. Kg2 {[%emt 0:01:16]} Qe6 {[%emt 0:00:19]} 34. Bb2 {[%emt 0:00:29]} Qb3 {[%emt 0:01:12]} 35. Kg1 {[%emt 0:00:31]} Qe6 {[%emt 0:01:10]} 36. Kg2 {[%emt 0:00:32]} Qb3 {[%emt 0:00:55]} 37. Kg1 {[%emt 0:00:27]} Qe6 {[%emt 0:00:14]} 38. Kh2 {[%emt 0:00:15]} Qb3 {[%emt 0:00:49]} 39. Kg2 {[%emt 0:00:11]} Qe6 {[%emt 0:00:15]} 40. f3 {[%emt 0:01:06]} exf3+ {[%emt 0:00:44]} 41. Kxf3 {[%emt 0:30:22]} Qf5+ {[%emt 0:30:50] Ke4} 1/2-1/2

[Event "16th Deltalift Open 2019"]
[Site "Halmstad"]
[Date "2019.05.31"]
[Round "6.13"]
[White "Svensson, Mikael"]
[Black "Silseth, Simon"]
[Result "0-1"]
[ECO "D02"]
[WhiteElo "2125"]
[BlackElo "2268"]
[Annotator "ChessBase"]
[PlyCount "74"]
[EventDate "2019.05.30"]
[EventType "swiss"]
[EventCountry "SWE"]
[SourceTitle "playchess.com"]
[Source "ChessBase"]
[SourceQuality "1"]
[TimeControl "40/5400+30:1800+30"]

1. d4 {[%emt 0:00:00]} d5 {[%emt 0:00:00]} 2. Nf3 {[%emt 0:00:00]} Nf6 {[%emt 0:00:18]} 3. c4 {[%emt 0:00:00]} e6 {[%emt 0:00:20]} 4. cxd5 {[%emt 0:00:00]} exd5 {[%emt 0:00:28]} 5. Bg5 {[%emt 0:00:11]} c6 {[%emt 0:03:46]} 6. Nc3 {[%emt 0:00:37]} Be7 {[%emt 0:03:42]} 7. e3 {[%emt 0:02:47]} Bf5 {[%emt 0:02:17]} 8. Bd3 {[%emt 0:05:46]} Bxd3 {[%emt 0:00:41]} 9. Qxd3 {[%emt 0:00:05]} Nbd7 {[%emt 0:00:57]} 10. O-O {[%emt 0:00:19]} O-O {[%emt 0:00:24]} 11. Rab1 {[%emt 0:02:20]} Ne4 {[%emt 0:05:35]} 12. Bxe7 {[%emt 0:01:30]} Qxe7 {[%emt 0:00:11]} 13. b4 {[%emt 0:02:18]} b5 {[%emt 0:04:13]} 14. Nd2 {[%emt 0:02:20]} Nxd2 {[%emt 0:00:41]} 15. Qxd2 {[%emt 0:00:05]} Nb6 {[%emt 0:00:32]} 16. Ne2 {[%emt 0:07:34]} Nc4 {[%emt 0:02:04]} 17. Qc3 {[%emt 0:00:11]} a5 {[%emt 0:00:21]} 18. Nc1 {[%emt 0:03:45]} axb4 {[%emt 0:03:13]} 19. Qxb4 {[%emt 0:06:00]} Qxb4 {[%emt 0:09:52]} 20. Rxb4 {[%emt 0:00:05]} f5 {[%emt 0:00:40]} 21. Re1 {[%emt 0:02:36]} Rfe8 {[%emt 0:03:44]} 22. g3 {[%emt 0:00:23]} g5 {[%emt 0:04:23]} 23. Re2 {[%emt 0:03:25]} f4 {[%emt 0:03:52]} 24. gxf4 {[%emt 0:09:20]} gxf4 {[%emt 0:00:10]} 25. exf4 {[%emt 0:00:22]} Rxe2 {[%emt 0:00:59]} 26. Nxe2 {[%emt 0:00:06]} Rxa2 {[%emt 0:00:33]} 27. Kf1 {[%emt 0:02:58]} Nd2+ {[%emt 0:03:53]} 28. Kg2 {[%emt 0:00:21]} Rc2 {[%emt 0:00:50]} 29. Ng3 {[%emt 0:03:25]} Kf7 {[%emt 0:03:59]} 30. h4 {[%emt 0:03:06]} Kf6 {[%emt 0:02:01]} 31. Kh3 {[%emt 0:00:45]} Rc4 {[%emt 0:01:41]} 32. Rb2 {[%emt 0:01:06]} Rxd4 {[%emt 0:00:35]} 33. Kg4 {[%emt 0:00:35]} Nc4 {[%emt 0:07:32]} 34. Re2 {[%emt 0:00:22]} b4 {[%emt 0:00:45]} 35. Nh5+ {[%emt 0:02:50]} Kf7 {[%emt 0:00:15]} 36. Kg5 {[%emt 0:06:28]} b3 {[%emt 0:06:00]} 37. f5 {[%emt 0:00:42]} Re4 {[%emt 0:01:49]} 0-1

[Event "16th Deltalift Open 2019"]
[Site "Halmstad"]
[Date "2019.05.31"]
[Round "6.14"]
[White "Carlstrom, Niklas"]
[Black "Sjoberg, Isak"]
[Result "1-0"]
[ECO "C47"]
[WhiteElo "2065"]
[BlackElo "2208"]
[Annotator "ChessBase"]
[PlyCount "47"]
[EventDate "2019.05.30"]
[EventType "swiss"]
[EventCountry "SWE"]
[SourceTitle "playchess.com"]
[Source "ChessBase"]
[SourceQuality "1"]
[TimeControl "40/5400+30:1800+30"]

1. e4 {[%emt 0:00:00]} e5 {[%emt 0:00:00]} 2. Nf3 {[%emt 0:00:00]} Nc6 {[%emt 0:00:00]} 3. Nc3 {[%emt 0:00:03]} Nf6 {[%emt 0:00:48]} 4. a3 {[%emt 0:00:18]} d5 {[%emt 0:00:14]} 5. Bb5 {[%emt 0:00:21]} Nxe4 {[%emt 0:02:22]} 6. Nxe5 {[%emt 0:00:24]} Qg5 {[%emt 0:01:56]} 7. Nxc6 {[%emt 0:00:35]} Qxg2 {[%emt 0:00:05]} 8. Rf1 {[%emt 0:00:19]} a6 {[%emt 0:03:39]} 9. Nxd5 {[%emt 0:00:30]} axb5 {[%emt 0:00:12]} 10. Nxc7+ {[%emt 0:00:08]} Kd7 {[%emt 0:00:01]} 11. Nxa8 {[%emt 0:00:12]} Kxc6 {[%emt 0:00:03]} 12. Qe2 {[%emt 0:00:14]} Bc5 {[%emt 0:11:55]} 13. d4 {[%emt 0:00:42]} Bxd4 {[%emt 0:09:13]} 14. a4 {[%emt 0:00:40]} Nd6 {[%emt 0:19:26]} 15. axb5+ {[%emt 0:02:10]} Kd7 {[%emt 0:00:21]} 16. c3 {[%emt 0:04:14]} Bc5 {[%emt 0:09:24]} 17. Be3 {[%emt 0:09:38]} Re8 {[%emt 0:00:55]} 18. b4 {[%emt 0:06:16]} Bxe3 {[%emt 0:02:30]} 19. fxe3 {[%emt 0:00:07]} Qh3 {[%emt 0:05:36]} 20. O-O-O {[%emt 0:09:47]} Rxe3 {[%emt 0:04:20]} 21. Qd2 {[%emt 0:00:29]} Rxc3+ {[%emt 0:01:55]} 22. Kb2 {[%emt 0:00:28]} Rb3+ {[%emt 0:00:04]} 23. Kc2 {[%emt 0:00:44]} Ke8 {[%emt 0:01:08]} 24. Nc7+ {[%emt 0:00:21]} 1-0